[Event "Late-Titled-Tuesday-Blitz-February-27-2024"]
[Site "Chess.com"]
[Date "2024.02.27"]
[Round "1"]
[White "yaguigor"]
[Black "jaramsdal"]
[Result "1-0"]
[WhiteElo "2626"]
[BlackElo "2304"]
[TimeControl "180+1"]
[EndTime "14:06:32 PST"]
[Termination "yaguigor won by resignation"]

1. Nf3 {[%clk 0:02:59.7]} 1... d5 {[%clk 0:02:57.7]} 2. d4 {[%clk 0:02:59]} 2...
Nf6 {[%clk 0:02:49.2]} 3. c4 {[%clk 0:02:59.2]} 3... e6 {[%clk 0:02:44.2]} 4.
Nc3 {[%clk 0:02:58]} 4... dxc4 {[%clk 0:02:44.6]} 5. e3 {[%clk 0:02:57.1]} 5...
a6 {[%clk 0:02:40.9]} 6. Bxc4 {[%clk 0:02:57.6]} 6... b5 {[%clk 0:02:40.9]} 7.
Bd3 {[%clk 0:02:52.7]} 7... Bb7 {[%clk 0:02:35.7]} 8. O-O {[%clk 0:02:52]} 8...
Nbd7 {[%clk 0:02:35.2]} 9. Qe2 {[%clk 0:02:51]} 9... c5 {[%clk 0:02:35.3]} 10.
Rd1 {[%clk 0:02:49.1]} 10... Be7 {[%clk 0:02:25.8]} 11. b3 {[%clk 0:02:47.9]}
11... O-O {[%clk 0:02:24.1]} 12. Bb2 {[%clk 0:02:48]} 12... Qb8 {[%clk
0:02:11.2]} 13. Rac1 {[%clk 0:02:46.3]} 13... Qa7 {[%clk 0:01:59]} 14. Ne5
{[%clk 0:02:37.8]} 14... Rfd8 {[%clk 0:01:42.3]} 15. Nxd7 {[%clk 0:02:29.9]}
15... Rxd7 {[%clk 0:01:35.9]} 16. dxc5 {[%clk 0:02:28.7]} 16... Bxc5 {[%clk
0:01:36.8]} 17. Nxb5 {[%clk 0:02:11.3]} 17... axb5 {[%clk 0:01:25.8]} 18. Bxf6
{[%clk 0:02:10.1]} 18... Rxd3 {[%clk 0:00:31.4]} 19. Rxd3 {[%clk 0:02:08.5]}
19... gxf6 {[%clk 0:00:32]} 20. Qg4+ {[%clk 0:02:07.6]} 20... Kh8 {[%clk
0:00:30.2]} 21. Qh4 {[%clk 0:01:57.3]} 21... Kg7 {[%clk 0:00:16]} 22. Rd7 {[%clk
0:01:45.8]} 22... Bxe3 {[%clk 0:00:12.8]} 23. Qg3+ {[%clk 0:01:44.5]} 23... Bg5
{[%clk 0:00:11.3]} 24. h4 {[%clk 0:01:41.3]} 24... Qa3 {[%clk 0:00:08.4]} 25.
Rf1 {[%clk 0:01:38.9]} 25... Bc6 {[%clk 0:00:06.8]} 26. Rdd1 {[%clk 0:01:33.3]}
26... h6 {[%clk 0:00:07]} 27. hxg5 {[%clk 0:01:27.7]} 27... hxg5 {[%clk
0:00:07.9]} 28. Qd6 {[%clk 0:01:23.6]} 28... Bd5 {[%clk 0:00:05.1]} 29. Qxa3
{[%clk 0:01:16.7]} 29... Rxa3 {[%clk 0:00:06]} 30. Rd2 {[%clk 0:01:17.4]} 30...
f5 {[%clk 0:00:05.8]} 31. Rc1 {[%clk 0:01:15.6]} 31... Kf6 {[%clk 0:00:06.1]}
32. Rc5 {[%clk 0:01:15.5]} 32... Ke5 {[%clk 0:00:05.8]} 33. Rxb5 {[%clk
0:01:15.1]} 33... Ke4 {[%clk 0:00:05.3]} 34. Rb4+ {[%clk 0:01:14.6]} 34... Ke5
{[%clk 0:00:05.4]} 35. Ra4 {[%clk 0:01:14.7]} 35... Rxa4 {[%clk 0:00:03.4]} 36.
bxa4 {[%clk 0:01:15.6]} 36... Bc6 {[%clk 0:00:04.2]} 37. a5 {[%clk 0:01:14.5]}
37... Bb5 {[%clk 0:00:04.8]} 38. a4 {[%clk 0:01:13.4]} 38... Bxa4 {[%clk
0:00:04.5]} 39. a6 {[%clk 0:01:13]} 39... Bc6 {[%clk 0:00:04.7]} 40. a7 {[%clk
0:01:13.3]} 40... Bb7 {[%clk 0:00:05.1]} 41. Rb2 {[%clk 0:01:12.3]} 41... Bc6
{[%clk 0:00:05]} 42. Rb8 {[%clk 0:01:12.2]} 1-0

[Event "Late-Titled-Tuesday-Blitz-February-27-2024"]
[Site "Chess.com"]
[Date "2024.02.27"]
[Round "1"]
[White "KorolDimitriy75"]
[Black "GoltsevDmitry2000"]
[Result "0-1"]
[WhiteElo "2435"]
[BlackElo "2766"]
[TimeControl "180+1"]
[EndTime "14:06:35 PST"]
[Termination "GoltsevDmitry2000 won on time"]

1. d4 {[%clk 0:03:00.9]} 1... e6 {[%clk 0:02:59.9]} 2. c4 {[%clk 0:03:01.5]}
2... b6 {[%clk 0:02:59.5]} 3. Nc3 {[%clk 0:03:01.7]} 3... Bb7 {[%clk 0:02:59.8]}
4. Qc2 {[%clk 0:03:02]} 4... Nf6 {[%clk 0:02:59]} 5. e4 {[%clk 0:03:02.2]} 5...
d6 {[%clk 0:02:59.4]} 6. Nf3 {[%clk 0:03:00.5]} 6... Nbd7 {[%clk 0:02:59.2]} 7.
Bd3 {[%clk 0:02:57.1]} 7... e5 {[%clk 0:02:58.8]} 8. O-O {[%clk 0:02:48.9]} 8...
Be7 {[%clk 0:02:58.5]} 9. Re1 {[%clk 0:02:40.2]} 9... O-O {[%clk 0:02:58.1]} 10.
h3 {[%clk 0:02:33.4]} 10... a5 {[%clk 0:02:57.6]} 11. b3 {[%clk 0:02:27.2]}
11... Re8 {[%clk 0:02:56.6]} 12. d5 {[%clk 0:02:22.6]} 12... Nc5 {[%clk
0:02:55.8]} 13. Bf1 {[%clk 0:02:17.8]} 13... Nh5 {[%clk 0:02:48.6]} 14. Be3
{[%clk 0:02:15]} 14... Qd7 {[%clk 0:02:41.2]} 15. Nd2 {[%clk 0:02:02.4]} 15...
Nf4 {[%clk 0:02:40]} 16. Kh2 {[%clk 0:02:00.2]} 16... Bc8 {[%clk 0:02:37.5]} 17.
a3 {[%clk 0:01:43.2]} 17... g6 {[%clk 0:02:13]} 18. b4 {[%clk 0:01:41.8]} 18...
Na6 {[%clk 0:02:12.2]} 19. Qb3 {[%clk 0:01:37.2]} 19... Rf8 {[%clk 0:01:46.1]}
20. Rac1 {[%clk 0:00:56.8]} 20... h5 {[%clk 0:01:43.3]} 21. Nb5 {[%clk
0:00:49.7]} 21... h4 {[%clk 0:01:35.7]} 22. Rc2 {[%clk 0:00:21.5]} 22... Kh7
{[%clk 0:01:26]} 23. Nf3 {[%clk 0:00:16]} 23... g5 {[%clk 0:01:22.3]} 24. Bxf4
{[%clk 0:00:10]} 24... gxf4 {[%clk 0:01:18.7]} 25. Ng1 {[%clk 0:00:09.9]} 25...
Rg8 {[%clk 0:01:09.9]} 26. Be2 {[%clk 0:00:09.9]} 26... f5 {[%clk 0:00:58.7]}
27. exf5 {[%clk 0:00:08.3]} 27... Qxf5 {[%clk 0:00:59.6]} 28. Bd3 {[%clk
0:00:07.7]} 28... axb4 {[%clk 0:00:54]} 29. axb4 {[%clk 0:00:07.2]} 29... Kh6
{[%clk 0:00:53.1]} 30. Bxf5 {[%clk 0:00:06.8]} 30... Bxf5 {[%clk 0:00:54]} 31.
Ra2 {[%clk 0:00:06.1]} 31... Bf6 {[%clk 0:00:51.3]} 32. f3 {[%clk 0:00:06.2]}
32... Rg3 {[%clk 0:00:48.4]} 33. Rea1 {[%clk 0:00:03.4]} 33... Rag8 {[%clk
0:00:48.5]} 0-1

[Event "Late-Titled-Tuesday-Blitz-February-27-2024"]
[Site "Chess.com"]
[Date "2024.02.27"]
[Round "1"]
[White "Jenia84"]
[Black "Unkreativ3"]
[Result "0-1"]
[WhiteElo "2306"]
[BlackElo "2624"]
[TimeControl "180+1"]
[EndTime "14:06:38 PST"]
[Termination "Unkreativ3 won by resignation"]

1. Nf3 {[%clk 0:02:55.6]} 1... Nc6 {[%clk 0:02:57]} 2. g3 {[%clk 0:02:55.3]}
2... d5 {[%clk 0:02:56.7]} 3. Bg2 {[%clk 0:02:55.7]} 3... g6 {[%clk 0:02:57.1]}
4. O-O {[%clk 0:02:56]} 4... Bg7 {[%clk 0:02:57.7]} 5. d4 {[%clk 0:02:54.4]}
5... Nf6 {[%clk 0:02:58.1]} 6. b3 {[%clk 0:02:52.5]} 6... O-O {[%clk 0:02:58.1]}
7. Bb2 {[%clk 0:02:52.7]} 7... Bf5 {[%clk 0:02:58.6]} 8. Nbd2 {[%clk 0:02:52.9]}
8... Nb4 {[%clk 0:02:59.1]} 9. c3 {[%clk 0:02:50.8]} 9... Na6 {[%clk 0:02:59.4]}
10. Nh4 {[%clk 0:02:47.9]} 10... c6 {[%clk 0:02:59.1]} 11. Nxf5 {[%clk
0:02:46.2]} 11... gxf5 {[%clk 0:03:00]} 12. Qc2 {[%clk 0:02:45.6]} 12... Ne4
{[%clk 0:02:59.3]} 13. f3 {[%clk 0:02:43.6]} 13... Nd6 {[%clk 0:02:58.5]} 14. e4
{[%clk 0:02:41.1]} 14... e6 {[%clk 0:02:54.6]} 15. e5 {[%clk 0:02:32.5]} 15...
Nc8 {[%clk 0:02:54.8]} 16. f4 {[%clk 0:02:32]} 16... Nc7 {[%clk 0:02:54.9]} 17.
h3 {[%clk 0:02:29.2]} 17... f6 {[%clk 0:02:47.2]} 18. Nf3 {[%clk 0:02:28.1]}
18... fxe5 {[%clk 0:02:39.1]} 19. Nxe5 {[%clk 0:02:27.6]} 19... Nd6 {[%clk
0:02:39]} 20. Rae1 {[%clk 0:02:22.4]} 20... Bxe5 {[%clk 0:02:35.5]} 21. fxe5
{[%clk 0:02:19.4]} 21... Ne4 {[%clk 0:02:31.5]} 22. Bxe4 {[%clk 0:02:19.4]}
22... dxe4 {[%clk 0:02:29.3]} 23. Qd2 {[%clk 0:02:18.8]} 23... Qe7 {[%clk
0:02:26.6]} 24. Qh6 {[%clk 0:02:11.4]} 24... Qg7 {[%clk 0:02:26.4]} 25. Qxg7+
{[%clk 0:02:09.8]} 25... Kxg7 {[%clk 0:02:27.3]} 26. Kf2 {[%clk 0:02:07.5]}
26... b5 {[%clk 0:02:24.1]} 27. Ke2 {[%clk 0:02:05.3]} 27... a5 {[%clk
0:02:22.5]} 28. Ba3 {[%clk 0:02:02.7]} 28... b4 {[%clk 0:02:20.3]} 29. Bb2
{[%clk 0:01:58]} 29... bxc3 {[%clk 0:02:17.8]} 30. Bxc3 {[%clk 0:01:57.8]} 30...
Nd5 {[%clk 0:02:15.9]} 31. Rc1 {[%clk 0:01:56]} 31... a4 {[%clk 0:02:15]} 32. b4
{[%clk 0:01:53.7]} 32... a3 {[%clk 0:02:13.5]} 33. Bd2 {[%clk 0:01:52.8]} 33...
Ra6 {[%clk 0:02:13.9]} 34. Rc4 {[%clk 0:01:51.1]} 34... Rb8 {[%clk 0:02:12.6]}
35. Rfc1 {[%clk 0:01:49.2]} 35... Rbb6 {[%clk 0:02:13.1]} 36. Be1 {[%clk
0:01:38.8]} 36... Kf7 {[%clk 0:02:11.8]} 37. Bd2 {[%clk 0:01:38.6]} 37... Ke8
{[%clk 0:02:10.6]} 38. Rc5 {[%clk 0:01:36.6]} 38... Kd7 {[%clk 0:02:10.3]} 39.
g4 {[%clk 0:01:36.3]} 39... Nxb4 {[%clk 0:02:07.6]} 40. gxf5 {[%clk 0:01:33.3]}
40... Nd3 {[%clk 0:02:04.6]} 41. f6 {[%clk 0:01:21.9]} 41... Nxc1+ {[%clk
0:01:56.8]} 42. Rxc1 {[%clk 0:01:20.4]} 42... Rb2 {[%clk 0:01:56.9]} 43. Ke3
{[%clk 0:01:15.5]} 43... Rxa2 {[%clk 0:01:55]} 44. f7 {[%clk 0:01:13.7]} 44...
Ra8 {[%clk 0:01:45.5]} 45. Bb4 {[%clk 0:01:11.8]} 45... Rh2 {[%clk 0:01:33.5]}
46. f8=Q {[%clk 0:01:10.3]} 46... Rxf8 {[%clk 0:01:30.6]} 47. Bxf8 {[%clk
0:01:10.8]} 47... Rxh3+ {[%clk 0:01:27.1]} 48. Kxe4 {[%clk 0:01:10.7]} 48... a2
{[%clk 0:01:24.6]} 49. Ra1 {[%clk 0:01:10.3]} 49... Rh2 {[%clk 0:01:25]} 50. Bc5
{[%clk 0:01:08.8]} 50... h5 {[%clk 0:01:22]} 51. Kf4 {[%clk 0:01:07.3]} 51... h4
{[%clk 0:01:21.5]} 52. Kg4 {[%clk 0:01:07.3]} 52... Kc7 {[%clk 0:01:20.9]} 53.
Bb4 {[%clk 0:01:01.4]} 53... Kb7 {[%clk 0:01:17.4]} 54. Bd2 {[%clk 0:01:00.8]}
54... Rxd2 {[%clk 0:01:16.9]} 55. Kxh4 {[%clk 0:01:00.7]} 55... Ka6 {[%clk
0:01:12.8]} 56. Kg5 {[%clk 0:01:01.2]} 56... Rf2 {[%clk 0:01:13.3]} 57. Rc1
{[%clk 0:00:53.5]} 57... Kb5 {[%clk 0:01:13.4]} 0-1

[Event "Late-Titled-Tuesday-Blitz-February-27-2024"]
[Site "Chess.com"]
[Date "2024.02.27"]
[Round "1"]
[White "DefiantChair"]
[Black "TheKingDoctor"]
[Result "1-0"]
[WhiteElo "2651"]
[BlackElo "2356"]
[TimeControl "180+1"]
[EndTime "14:06:40 PST"]
[Termination "DefiantChair won by resignation"]

1. e4 {[%clk 0:02:55.4]} 1... e5 {[%clk 0:02:59.9]} 2. Nf3 {[%clk 0:02:52.5]}
2... Nc6 {[%clk 0:03:00.1]} 3. Bb5 {[%clk 0:02:49.9]} 3... Nd4 {[%clk
0:02:58.8]} 4. Nxd4 {[%clk 0:02:49.5]} 4... exd4 {[%clk 0:02:59.7]} 5. d3 {[%clk
0:02:49.3]} 5... c6 {[%clk 0:03:00]} 6. Bc4 {[%clk 0:02:49.1]} 6... d5 {[%clk
0:02:59.7]} 7. exd5 {[%clk 0:02:49]} 7... cxd5 {[%clk 0:03:00.6]} 8. Bb5+ {[%clk
0:02:48.8]} 8... Bd7 {[%clk 0:03:01]} 9. Bxd7+ {[%clk 0:02:48.5]} 9... Qxd7
{[%clk 0:03:01.3]} 10. O-O {[%clk 0:02:48]} 10... Nf6 {[%clk 0:03:00.8]} 11.
Re1+ {[%clk 0:02:47.4]} 11... Be7 {[%clk 0:03:01.4]} 12. Nd2 {[%clk 0:02:47.7]}
12... O-O {[%clk 0:03:01.3]} 13. Nb3 {[%clk 0:02:47.9]} 13... Bb4 {[%clk
0:02:58.7]} 14. Bd2 {[%clk 0:02:47.7]} 14... Qa4 {[%clk 0:02:46.1]} 15. Bxb4
{[%clk 0:02:46.2]} 15... Qxb4 {[%clk 0:02:46.3]} 16. a3 {[%clk 0:02:46.5]} 16...
Qb6 {[%clk 0:02:46.6]} 17. Qd2 {[%clk 0:02:46.5]} 17... a5 {[%clk 0:02:38.3]}
18. a4 {[%clk 0:02:45.1]} 18... Rfc8 {[%clk 0:02:23.3]} 19. Re2 {[%clk
0:02:43.6]} 19... h6 {[%clk 0:02:10.6]} 20. Rd1 {[%clk 0:02:43.3]} 20... Rc6
{[%clk 0:01:47.2]} 21. Qf4 {[%clk 0:02:33.5]} 21... Rac8 {[%clk 0:01:30.7]} 22.
Qxd4 {[%clk 0:02:29.2]} 22... Qc7 {[%clk 0:01:21.9]} 23. c3 {[%clk 0:02:28.1]}
23... Rb6 {[%clk 0:01:16.6]} 24. Nxa5 {[%clk 0:02:22.3]} 24... Ra6 {[%clk
0:01:10.5]} 25. Nb3 {[%clk 0:02:19.9]} 25... Rca8 {[%clk 0:01:10.6]} 26. a5
{[%clk 0:02:18.8]} 26... b6 {[%clk 0:01:10.2]} 27. axb6 {[%clk 0:02:17.6]} 27...
Rxb6 {[%clk 0:01:11.1]} 28. Nc5 {[%clk 0:02:14.5]} 28... Ra2 {[%clk 0:01:02.7]}
29. h3 {[%clk 0:01:33.8]} 29... Raxb2 {[%clk 0:01:00.9]} 30. Rxb2 {[%clk
0:01:33.2]} 30... Rxb2 {[%clk 0:01:01.8]} 31. Qe3 {[%clk 0:01:28.4]} 31... Rc2
{[%clk 0:00:56.4]} 32. d4 {[%clk 0:01:28.1]} 32... Ne4 {[%clk 0:00:53.3]} 33.
Nxe4 {[%clk 0:01:24.9]} 33... dxe4 {[%clk 0:00:54.2]} 34. Qxe4 {[%clk
0:01:25.1]} 34... Rxc3 {[%clk 0:00:49.1]} 35. d5 {[%clk 0:01:25.3]} 35... Qd7
{[%clk 0:00:45.1]} 36. d6 {[%clk 0:01:20.2]} 36... Rc6 {[%clk 0:00:44.3]} 37.
Qe7 {[%clk 0:01:16.4]} 37... Rc7 {[%clk 0:00:14.1]} 38. dxc7 {[%clk 0:01:09.7]}
38... Qxd1+ {[%clk 0:00:13.5]} 39. Kh2 {[%clk 0:01:09.5]} 39... Qd2 {[%clk
0:00:08.1]} 40. Qd8+ {[%clk 0:01:09.1]} 40... Kh7 {[%clk 0:00:08]} 41. Qxd2
{[%clk 0:01:05.9]} 1-0

[Event "Late-Titled-Tuesday-Blitz-February-27-2024"]
[Site "Chess.com"]
[Date "2024.02.27"]
[Round "1"]
[White "WilsonPalencia21"]
[Black "campochess"]
[Result "1-0"]
[WhiteElo "2575"]
[BlackElo "2197"]
[TimeControl "180+1"]
[EndTime "14:06:43 PST"]
[Termination "WilsonPalencia21 won by resignation"]

1. d4 {[%clk 0:02:59.4]} 1... c5 {[%clk 0:02:59.8]} 2. d5 {[%clk 0:02:54.1]}
2... Nf6 {[%clk 0:02:57.8]} 3. c4 {[%clk 0:02:53.9]} 3... b5 {[%clk 0:02:56.2]}
4. cxb5 {[%clk 0:02:52.8]} 4... a6 {[%clk 0:02:56.3]} 5. bxa6 {[%clk 0:02:53.7]}
5... Bxa6 {[%clk 0:02:52.9]} 6. Nc3 {[%clk 0:02:54.6]} 6... g6 {[%clk
0:02:52.5]} 7. e4 {[%clk 0:02:54.8]} 7... Bxf1 {[%clk 0:02:50.4]} 8. Kxf1 {[%clk
0:02:55.7]} 8... d6 {[%clk 0:02:49.9]} 9. g3 {[%clk 0:02:55.7]} 9... Bg7 {[%clk
0:02:49.7]} 10. Kg2 {[%clk 0:02:55.8]} 10... O-O {[%clk 0:02:49.5]} 11. Nf3
{[%clk 0:02:55.6]} 11... Nbd7 {[%clk 0:02:49.4]} 12. a4 {[%clk 0:02:54.8]} 12...
Qb6 {[%clk 0:02:42.6]} 13. Qc2 {[%clk 0:02:52.9]} 13... Rfb8 {[%clk 0:02:40.6]}
14. Ra3 {[%clk 0:02:47.2]} 14... Ng4 {[%clk 0:02:38.5]} 15. Nb5 {[%clk 0:02:43]}
15... Qb7 {[%clk 0:02:34.1]} 16. h3 {[%clk 0:02:37.6]} 16... Nge5 {[%clk
0:02:31.6]} 17. Nxe5 {[%clk 0:02:28.1]} 17... Nxe5 {[%clk 0:02:28.6]} 18. h4
{[%clk 0:02:23.1]} 18... f5 {[%clk 0:02:27.6]} 19. h5 {[%clk 0:02:13.8]} 19...
Rf8 {[%clk 0:02:17.9]} 20. hxg6 {[%clk 0:02:13]} 20... hxg6 {[%clk 0:02:16.7]}
21. Bf4 {[%clk 0:02:03.1]} 21... Nd7 {[%clk 0:02:05]} 22. Re1 {[%clk 0:01:55.3]}
22... Nb6 {[%clk 0:02:03.9]} 23. exf5 {[%clk 0:01:22.4]} 23... Qxd5+ {[%clk
0:01:56.4]} 24. Qe4 {[%clk 0:01:20.7]} 24... Rxf5 {[%clk 0:01:42.7]} 25. Nc7
{[%clk 0:01:09.6]} 25... Qxe4+ {[%clk 0:01:40.9]} 26. Rxe4 {[%clk 0:01:08.9]}
26... Ra7 {[%clk 0:01:28.1]} 27. Nb5 {[%clk 0:00:43.4]} 27... Rd7 {[%clk
0:01:21.6]} 28. a5 {[%clk 0:00:39.3]} 28... Nd5 {[%clk 0:01:19.6]} 29. a6 {[%clk
0:00:36.5]} 29... Rf8 {[%clk 0:01:19.5]} 30. Bg5 {[%clk 0:00:30.2]} 30... Bxb2
{[%clk 0:01:16.3]} 31. Rd3 {[%clk 0:00:25.3]} 31... e5 {[%clk 0:01:12.3]} 32.
Rxd5 {[%clk 0:00:24.6]} 32... Bd4 {[%clk 0:01:04.5]} 33. Be3 {[%clk 0:00:18.7]}
33... Ra8 {[%clk 0:01:01.9]} 34. Rxd6 {[%clk 0:00:15.2]} 34... Rxd6 {[%clk
0:01:00.5]} 35. Nxd6 {[%clk 0:00:16]} 35... Rxa6 {[%clk 0:01:00.2]} 36. Nc4
{[%clk 0:00:16.6]} 36... Ra2 {[%clk 0:00:42.9]} 37. Nxe5 {[%clk 0:00:16.3]} 1-0

[Event "Late-Titled-Tuesday-Blitz-February-27-2024"]
[Site "Chess.com"]
[Date "2024.02.27"]
[Round "1"]
[White "ElVital"]
[Black "ArtemDyachuk"]
[Result "0-1"]
[WhiteElo "2384"]
[BlackElo "2679"]
[TimeControl "180+1"]
[EndTime "14:06:44 PST"]
[Termination "ArtemDyachuk won by resignation"]

1. e4 {[%clk 0:02:50.3]} 1... c5 {[%clk 0:02:39.5]} 2. Nc3 {[%clk 0:02:40.7]}
2... d6 {[%clk 0:02:38.7]} 3. d4 {[%clk 0:02:38.9]} 3... cxd4 {[%clk 0:02:39.1]}
4. Qxd4 {[%clk 0:02:39.7]} 4... Nc6 {[%clk 0:02:39.4]} 5. Qd3 {[%clk 0:02:38.6]}
5... Nf6 {[%clk 0:02:37.8]} 6. Nf3 {[%clk 0:02:38.8]} 6... g6 {[%clk 0:02:35]}
7. Be2 {[%clk 0:02:39.1]} 7... Bg7 {[%clk 0:02:35.1]} 8. O-O {[%clk 0:02:38.8]}
8... O-O {[%clk 0:02:34.8]} 9. Nd5 {[%clk 0:02:39.3]} 9... Nxd5 {[%clk
0:02:33.4]} 10. exd5 {[%clk 0:02:39.4]} 10... Bf5 {[%clk 0:02:33.6]} 11. Qd1
{[%clk 0:02:38.8]} 11... Ne5 {[%clk 0:02:32.7]} 12. Nxe5 {[%clk 0:02:38.3]}
12... Bxe5 {[%clk 0:02:33.6]} 13. c3 {[%clk 0:02:38.6]} 13... Rc8 {[%clk
0:02:30.9]} 14. Be3 {[%clk 0:02:38]} 14... Qa5 {[%clk 0:02:28.2]} 15. a4 {[%clk
0:02:37.7]} 15... a6 {[%clk 0:02:06.3]} 16. Qb3 {[%clk 0:02:36.9]} 16... Qc7
{[%clk 0:01:59.5]} 17. f4 {[%clk 0:02:36.3]} 17... Bf6 {[%clk 0:01:58.7]} 18.
Bb6 {[%clk 0:02:35.5]} 18... Qd7 {[%clk 0:01:54]} 19. h3 {[%clk 0:02:35.9]}
19... Be4 {[%clk 0:01:43]} 20. Rad1 {[%clk 0:02:24.9]} 20... h5 {[%clk
0:01:34.9]} 21. Qb4 {[%clk 0:02:23.4]} 21... Bc2 {[%clk 0:01:33.9]} 22. Ra1
{[%clk 0:02:17.1]} 22... Qf5 {[%clk 0:01:30.5]} 23. Bd4 {[%clk 0:01:50]} 23...
Qe4 {[%clk 0:01:23.1]} 24. Bxf6 {[%clk 0:01:40.7]} 24... Qxb4 {[%clk 0:01:17]}
25. cxb4 {[%clk 0:01:41.6]} 25... exf6 {[%clk 0:01:17.4]} 26. Rfe1 {[%clk
0:01:29.1]} 26... Rfe8 {[%clk 0:01:15.4]} 27. Kf2 {[%clk 0:01:27.8]} 27... Re4
{[%clk 0:01:14.4]} 28. Rac1 {[%clk 0:00:59.4]} 28... Rxf4+ {[%clk 0:01:09]} 29.
Ke3 {[%clk 0:00:54.9]} 29... Re4+ {[%clk 0:01:08]} 30. Kd2 {[%clk 0:00:54.2]}
30... Rd4+ {[%clk 0:01:08.3]} 31. Ke3 {[%clk 0:00:52.5]} 31... Rxb4 {[%clk
0:01:08.6]} 32. Kf2 {[%clk 0:00:35.3]} 32... Rxb2 {[%clk 0:01:02.1]} 33. g4
{[%clk 0:00:29.9]} 33... Rc5 {[%clk 0:01:00.3]} 34. gxh5 {[%clk 0:00:26.5]}
34... gxh5 {[%clk 0:01:01.2]} 35. Ke3 {[%clk 0:00:18.8]} 35... Rxd5 {[%clk
0:01:00]} 36. Bf3 {[%clk 0:00:12]} 36... Re5+ {[%clk 0:00:58.9]} 37. Kf4 {[%clk
0:00:09.3]} 37... Rb4+ {[%clk 0:00:56.5]} 0-1

[Event "Late-Titled-Tuesday-Blitz-February-27-2024"]
[Site "Chess.com"]
[Date "2024.02.27"]
[Round "1"]
[White "Zavgorodniy_Sergiy"]
[Black "Sajkochess"]
[Result "1/2-1/2"]
[WhiteElo "2623"]
[BlackElo "2331"]
[TimeControl "180+1"]
[EndTime "14:06:46 PST"]
[Termination "Game drawn by repetition"]

1. d4 {[%clk 0:03:00.9]} 1... Nf6 {[%clk 0:02:40.4]} 2. c4 {[%clk 0:03:00.5]}
2... e6 {[%clk 0:02:40.7]} 3. Nf3 {[%clk 0:03:00.9]} 3... Bb4+ {[%clk
0:02:41.1]} 4. Nbd2 {[%clk 0:03:00.7]} 4... b6 {[%clk 0:02:38.3]} 5. g3 {[%clk
0:03:01.1]} 5... Bb7 {[%clk 0:02:38.3]} 6. Bg2 {[%clk 0:03:01.3]} 6... O-O
{[%clk 0:02:38.5]} 7. O-O {[%clk 0:03:01.7]} 7... a5 {[%clk 0:02:34.1]} 8. b3
{[%clk 0:03:01.8]} 8... d5 {[%clk 0:02:27.4]} 9. Bb2 {[%clk 0:03:01.2]} 9...
Nbd7 {[%clk 0:02:27.1]} 10. a3 {[%clk 0:03:00.6]} 10... Be7 {[%clk 0:02:25.4]}
11. Qc2 {[%clk 0:02:59.1]} 11... c5 {[%clk 0:02:22.7]} 12. e3 {[%clk 0:02:58.6]}
12... Rc8 {[%clk 0:02:22.2]} 13. Rac1 {[%clk 0:02:56.4]} 13... Qc7 {[%clk
0:02:21.9]} 14. Qb1 {[%clk 0:02:56.2]} 14... Qb8 {[%clk 0:02:22.4]} 15. Rfd1
{[%clk 0:02:56.2]} 15... Rfd8 {[%clk 0:02:21.6]} 16. a4 {[%clk 0:02:54.4]} 16...
Qa8 {[%clk 0:02:16.3]} 17. cxd5 {[%clk 0:02:51.1]} 17... exd5 {[%clk 0:02:11.7]}
18. Qf5 {[%clk 0:02:47.2]} 18... g6 {[%clk 0:02:10.6]} 19. Qh3 {[%clk
0:02:45.8]} 19... c4 {[%clk 0:01:57]} 20. bxc4 {[%clk 0:02:45.4]} 20... dxc4
{[%clk 0:01:57.4]} 21. Ne5 {[%clk 0:02:27.6]} 21... Bxg2 {[%clk 0:01:28.2]} 22.
Qxg2 {[%clk 0:02:28.5]} 22... Qxg2+ {[%clk 0:01:27.9]} 23. Kxg2 {[%clk
0:02:29.4]} 23... Nxe5 {[%clk 0:01:27.8]} 24. dxe5 {[%clk 0:02:30]} 24... Ng4
{[%clk 0:01:21.3]} 25. Bd4 {[%clk 0:02:19]} 25... c3 {[%clk 0:01:09.5]} 26. Rxc3
{[%clk 0:02:03.9]} 26... Rxc3 {[%clk 0:01:04.4]} 27. Bxc3 {[%clk 0:02:04.8]}
27... Bb4 {[%clk 0:01:04.6]} 28. Bxb4 {[%clk 0:01:58.2]} 28... axb4 {[%clk
0:01:05.5]} 29. Kf3 {[%clk 0:01:52.3]} 29... Nxe5+ {[%clk 0:00:46.8]} 30. Ke2
{[%clk 0:01:52.7]} 30... Ra8 {[%clk 0:00:46.6]} 31. f4 {[%clk 0:01:47.4]} 31...
Ng4 {[%clk 0:00:28.5]} 32. h3 {[%clk 0:01:42.5]} 32... Nf6 {[%clk 0:00:28.2]}
33. Nc4 {[%clk 0:01:39.3]} 33... Rxa4 {[%clk 0:00:26.8]} 34. Nxb6 {[%clk
0:01:35.5]} 34... Ra2+ {[%clk 0:00:22.5]} 35. Kf3 {[%clk 0:01:30.7]} 35... Rh2
{[%clk 0:00:18.5]} 36. Nd5 {[%clk 0:01:21.9]} 36... Nxd5 {[%clk 0:00:17.3]} 37.
Rxd5 {[%clk 0:01:22.8]} 37... b3 {[%clk 0:00:15.2]} 38. Rb5 {[%clk 0:01:22.6]}
38... b2 {[%clk 0:00:15.7]} 39. e4 {[%clk 0:01:20.5]} 39... Kg7 {[%clk
0:00:15.9]} 40. e5 {[%clk 0:01:20]} 40... h5 {[%clk 0:00:16.4]} 41. h4 {[%clk
0:01:20]} 41... Rc2 {[%clk 0:00:12]} 42. Rb7 {[%clk 0:01:19.8]} 42... Kg8 {[%clk
0:00:11.4]} 43. Ke3 {[%clk 0:01:17.7]} 43... Rg2 {[%clk 0:00:11.3]} 44. Kf3
{[%clk 0:01:17.8]} 44... Rc2 {[%clk 0:00:11.4]} 45. Ke4 {[%clk 0:01:04.5]} 45...
Rg2 {[%clk 0:00:08.9]} 46. Kf3 {[%clk 0:00:56.1]} 46... Rc2 {[%clk 0:00:08.9]}
1/2-1/2